bitfinex/quotes_SOLUSD_20250922
["timestamp","ask_amount","ask_price","bid_price","bid_amount"]
[1758519247508,0.67,231.56,231.5,5.02965442]
[1758519248407,0.67,231.56,231.51,0.71]
[1758519248623,142.99400715,231.61,231.52,0.71]
[1758519248624,0.67,231.58,231.52,0.71]
[1758519248813,0.67,231.58,231.53,4.31909471]
[1758519249010,33.85,231.6,231.54,0.71]
[1758519249217,0.67,231.6,231.54,0.71]
[1758519250838,0.67,231.6,231.53,5.02909471]
[1758519251015,0.68,231.59,231.53,5.02909471]
[1758519251915,4.31778929,231.6,231.52,4.31927328]
[1758519252132,0.68,231.58,231.52,5.02927328]
[1758519253734,0.68,231.58,231.53,0.71]
[1758519254237,0.68,231.58,231.54,0.71]
[1758519255025,0.68,231.58,231.54,5.02878432]
[1758519255427,4.31778929,231.6,231.55,0.71]
[1758519255626,0.68,231.59,231.55,0.71]
[1758519255936,0.68,231.59,231.54,4.31878432]
[1758519256122,4.31778929,231.6,231.54,4.31878432]
[1758519256325,0.68,231.59,231.55,0.71]
[1758519256917,165.37999999,231.61,231.56,5.0283682]
[1758519257120,166.05999999,231.61,231.56,5.0283682]
[1758519257447,0.68,231.6,231.56,5.0283682]
[1758519260739,132.19999999,231.61,231.49,15.11944359]
[1758519260943,132.19999999,231.61,231.57,0.71]
[1758519261441,0.68,231.6,231.55,0.71]
[1758519261826,0.68,231.59,231.49,15.11944359]
[1758519262045,0.68,231.58,231.51,0.71]
[1758519262840,0.68,231.58,231.52,4.31928127]
[1758519263041,4.31814909,231.59,231.52,4.31928127]
[1758519263345,0.68,231.57,231.52,4.31928127]
[1758519263539,0.68,231.57,231.52,5.02928127]
[1758519264036,0.68,231.57,231.53,0.71]
[1758519265056,7.89074172,231.59,231.53,5.0289354]
[1758519265823,3.57259263,231.59,231.53,5.0289354]
[1758519266022,132.19999999,231.61,231.54,0.71]
[1758519266235,165.37999999,231.61,231.54,0.71]
[1758519268346,132.19999999,231.61,231.55,4.31872165]
[1758519268636,132.19999999,231.61,231.55,5.01872165]
[1758519268637,132.85999999,231.61,231.55,5.01872165]
[1758519269935,132.19999999,231.61,231.56,0.7]
[1758519270127,132.19999999,231.61,231.57,0.7]
[1758519270328,132.19999999,231.61,231.55,15.11552579]
[1758519270539,132.19999999,231.61,231.56,0.7]
[1758519270744,132.85999999,231.61,231.57,0.7]
[1758519271548,0.66,231.6,231.55,5.01872165]
[1758519272052,132.19999999,231.61,231.57,4.31834866]
[1758519272241,132.85999999,231.61,231.57,4.31834866]
[1758519272848,132.19999999,231.61,231.58,0.7]
[1758519273050,0.66,231.64,231.58,0.7]
[1758519273251,33.84,231.64,231.58,0.7]
[1758519273638,0.66,231.64,231.58,0.7]
[1758519273838,2.89267559,231.66,231.59,4.31797573]
[1758519274056,2.89267559,231.66,231.6,0.7]
[1758519274555,36.07267559,231.66,231.6,0.7]
[1758519274734,132.85999999,231.67,231.6,0.7]
[1758519275053,36.07211148,231.66,231.61,4.31760286]
[1758519275253,0.66,231.65,231.61,5.01760286]
[1758519275447,132.19999999,231.67,231.59,0.7]
[1758519275650,0.66,231.64,231.59,0.7]
[1758519276049,33.18,231.66,231.58,15.11356766]
[1758519276241,33.84,231.66,231.6,0.7]
[1758519277066,33.84,231.66,231.61,4.31760286]
[1758519277253,0.66,231.65,231.59,4.31781574]
[1758519277450,0.66,231.64,231.59,4.31781574]
[1758519277658,0.66,231.64,231.59,5.01781574]
[1758519279360,0.66,231.64,231.59,4.31781574]
[1758519279666,0.66,231.64,231.59,5.01781574]
[1758519279960,0.66,231.64,231.6,0.7]
[1758519281059,33.84,231.66,231.57,10.79563487]
[1758519281270,0.66,231.65,231.58,0.7]
[1758519281966,0.66,231.65,231.55,0.7]
[1758519282154,31.2,231.63,231.55,0.7]
[1758519282364,0.66,231.62,231.55,5.01872165]
[1758519282559,0.66,231.62,231.56,0.7]
[1758519283347,0.66,231.62,231.57,4.31834866]
[1758519283545,0.66,231.62,231.58,0.7]
[1758519283956,35.5172326,231.63,231.55,4.31872165]
[1758519284261,0.66,231.61,231.55,4.31872165]
[1758519284464,0.66,231.6,231.55,4.31872165]
[1758519284767,0.66,231.59,231.55,4.31872165]
[1758519284967,68.6972326,231.63,231.51,10.79848818]
[1758519284968,0.66,231.58,231.51,0.7]
[1758519285143,0.66,231.58,231.49,0.7]
[1758519285338,0.66,231.57,231.49,5.01965869]
[1758519285665,0.66,231.56,231.49,5.01965869]
[1758519286046,0.66,231.55,231.49,5.01965869]
[1758519287358,0.66,231.55,231.5,0.7]
[1758519287670,0.66,231.55,231.51,5.01944001]
[1758519288867,64.38,231.58,231.51,4.31944001]
[1758519289050,64.38,231.58,231.52,0.7]
[1758519289250,65.04,231.58,231.52,0.7]
[1758519289573,31.86,231.58,231.52,0.7]
[1758519289747,69.35816682,231.58,231.52,5.0192119]
[1758519289948,0.66,231.57,231.52,0.7]
[1758519290248,0.66,231.56,231.52,0.7]
[1758519291354,31.2,231.58,231.53,0.7]
[1758519291755,33.84,231.6,231.54,4.31890818]
[1758519291956,33.84,231.6,231.54,5.01890818]
[1758519295881,0.66,231.59,231.54,5.01890818]
[1758519298286,0.68,231.58,231.54,5.01890818]
[1758519298983,37.49779105,231.6,231.53,4.31908812]
[1758519299181,0.68,231.59,231.53,4.31908812]
[1758519299389,0.68,231.59,231.53,5.02908812]
[1758519299577,37.49779105,231.6,231.53,5.02908812]
[1758519299763,0.68,231.59,231.5,5.02965442]
[1758519300075,0.68,231.58,231.51,0.71]
[1758519301084,0.68,231.58,231.52,4.31928127]
[1758519301281,0.68,231.57,231.52,4.31928127]
[1758519301484,0.68,231.56,231.5,4.31948493]
[1758519301662,0.68,231.56,231.5,5.02948493]
[1758519302065,0.68,231.56,231.51,0.71]
[1758519302470,0.68,231.55,231.51,0.71]
[1758519302690,0.68,231.55,231.51,5.02934963]
[1758519303078,0.68,231.57,231.52,0.71]
[1758519303280,4.31829815,231.58,231.52,0.71]
[1758519303483,0.68,231.56,231.52,0.71]
[1758519304091,0.68,231.55,231.48,0.71]
[1758519304780,0.68,231.55,231.48,5.03002764]
[1758519304975,0.68,231.55,231.49,0.71]
[1758519305178,64.38,231.57,231.49,0.71]
[1758519305370,31.2,231.57,231.49,0.71]
[1758519306082,31.2,231.57,231.5,4.31965442]
[1758519306281,31.2,231.57,231.51,0.71]
[1758519306672,31.88,231.57,231.51,0.71]
[1758519307775,31.88,231.57,231.52,4.31928127]
[1758519307974,0.68,231.56,231.52,5.02928127]
[1758519311489,35.51817817,231.58,231.53,0.66]
[1758519311490,31.89,231.58,231.53,0.66]
[1758519311696,0.69,231.57,231.53,0.66]
[1758519313798,0.69,231.57,231.53,4.31901016]
[1758519313985,0.69,231.57,231.53,4.97901016]
[1758519314179,0.69,231.57,231.53,4.31901016]
[1758519314579,0.69,231.57,231.54,0.66]
[1758519314896,31.2,231.58,231.54,0.66]
[1758519315094,136.51778493,231.61,231.54,4.31886814]
[1758519315297,200.89778493,231.61,231.55,0.66]
[1758519315594,0.69,231.63,231.55,0.66]
[1758519315793,33.18,231.66,231.55,0.66]
[1758519316094,0.69,231.64,231.55,0.66]
[1758519318993,0.69,231.64,231.56,15.11487303]
[1758519319196,0.69,231.64,231.57,0.66]
[1758519319396,0.69,231.66,231.57,0.66]
[1758519320107,31.89,231.66,231.54,0.66]
[1758519320295,31.2,231.64,231.54,0.66]
[1758519320494,33.18,231.63,231.54,0.66]
[1758519320706,33.87,231.63,231.54,0.66]
[1758519320902,4.31741645,231.62,231.54,0.66]
[1758519321207,0.69,231.61,231.54,0.66]
[1758519321794,0.69,231.61,231.54,4.97890352]
[1758519321994,0.69,231.6,231.52,4.31910005]
[1758519322192,31.89,231.59,231.52,4.31910005]
[1758519322507,0.69,231.58,231.52,4.31910005]
[1758519322706,0.69,231.57,231.52,4.31910005]
[1758519323007,0.69,231.56,231.52,0.66]
[1758519323908,5.00830497,231.58,231.53,0.66]
[1758519324106,5.00830497,231.58,231.53,4.97905194]
[1758519324297,0.69,231.57,231.53,4.97905194]
[1758519326306,0.69,231.57,231.53,0.66]
[1758519327609,0.67,231.56,231.47,13.20471181]
[1758519327807,4.31838781,231.57,231.43,10.80234541]
[1758519327808,0.67,231.55,231.43,10.80234541]
[1758519328014,0.67,231.54,231.48,0.68]
[1758519329115,142.99887082,231.58,231.49,4.31984102]
[1758519329418,38.14835343,231.57,231.5,0.68]
[1758519329599,4.98835343,231.57,231.49,4.31984102]
[1758519329799,0.67,231.56,231.49,4.99984102]
[1758519330107,31.2,231.54,231.45,0.68]
[1758519330418,31.2,231.52,231.45,0.68]
[1758519330599,33.83,231.53,231.45,0.68]
[1758519330800,0.67,231.51,231.45,0.68]
[1758519331213,4.98958031,231.51,231.45,0.68]
[1758519332128,4.98958031,231.51,231.45,5.00056539]
[1758519332418,0.67,231.5,231.45,0.68]
[1758519332922,0.67,231.5,231.43,0.68]
[1758519333100,0.67,231.5,231.42,0.68]
[1758519333101,4.31984102,231.49,231.42,0.68]
[1758519333296,0.67,231.48,231.41,0.1]
[1758519333599,0.67,231.48,231.41,5.10129411]
[1758519333798,132.19999999,231.53,231.41,5.10129411]
[1758519333799,31.87,231.5,231.42,0.68]
[1758519334002,65.05,231.5,231.42,0.68]
[1758519334511,69.36968489,231.5,231.42,0.68]
[1758519334698,69.36968489,231.5,231.41,4.42129411]
[1758519334699,80.16882095,231.5,231.41,0.1]
[1758519335920,46.98882095,231.5,231.41,0.1]
[1758519336114,33.18,231.49,231.41,0.1]
[1758519336324,33.18,231.48,231.41,0.1]
[1758519336710,0.67,231.47,231.41,0.1]
[1758519337023,33.18,231.46,231.41,0.1]
[1758519337212,37.5004773,231.46,231.41,0.1]
[1758519337518,0.67,231.45,231.41,0.1]
[1758519337698,0.67,231.45,231.41,0.78]
[1758519338119,33.18,231.46,231.41,0.78]
[1758519338425,0.67,231.45,231.41,5.10132473]
[1758519338595,0.67,231.45,231.41,0.78]
[1758519338801,0.67,231.45,231.41,4.42131985]
[1758519339018,0.67,231.45,231.41,5.10131985]
[1758519341531,0.67,231.49,231.42,0.68]
[1758519342324,4.98988031,231.49,231.41,4.42131985]
[1758519342535,0.67,231.48,231.41,5.10131985]
[1758519342842,0.67,231.47,231.41,5.10131985]
[1758519343714,77.26908677,231.5,231.41,4.42131985]
[1758519343715,0.67,231.46,231.41,4.42131985]
[1758519344027,0.67,231.48,231.42,0.68]
[1758519345528,4.99011707,231.48,231.41,4.42131985]
[1758519345726,4.32011707,231.48,231.41,5.10131985]
[1758519345927,0.67,231.47,231.41,5.10131985]
[1758519346737,0.67,231.47,231.42,0.68]
[1758519347113,4.31986286,231.49,231.42,0.68]
[1758519347434,0.67,231.48,231.42,5.0010704]
[1758519347637,0.67,231.47,231.42,5.0010704]
[1758519347829,0.67,231.46,231.42,5.0010704]
[1758519348010,0.67,231.46,231.42,4.3210704]
[1758519348308,0.67,231.45,231.42,4.3210704]
[1758519348507,0.67,231.47,231.42,5.0010704]
[1758519348726,0.67,231.46,231.42,5.0010704]
[1758519349426,0.67,231.48,231.43,0.68]
[1758519349631,0.67,231.48,231.44,0.68]
[1758519350723,0.67,231.48,231.43,4.32094364]
[1758519350928,31.2,231.48,231.45,0.68]
[1758519351718,31.87,231.48,231.43,4.32094364]
[1758519351927,31.2,231.48,231.43,5.00094364]
[1758519352131,0.67,231.47,231.43,5.00094364]
[1758519353921,0.67,231.47,231.43,4.32094364]
[1758519354123,0.67,231.47,231.44,0.68]
[1758519354537,35.5200997,231.48,231.42,4.32114769]
[1758519354835,0.67,231.46,231.42,5.00114769]
[1758519355025,0.67,231.46,231.42,4.32114769]
[1758519355227,4.3200997,231.48,231.43,0.68]
[1758519355544,0.67,231.47,231.42,4.32114769]
[1758519355731,0.67,231.46,231.42,4.32114769]
[1758519355937,0.67,231.45,231.41,0.78]
[1758519356530,0.67,231.44,231.41,0.1]
[1758519358419,35.52050288,231.46,231.41,0.1]
[1758519358616,0.67,231.44,231.41,0.1]
[1758519359541,0.67,231.43,231.41,0.1]
[1758519360550,0.67,231.42,231.41,0.1]
[1758519361752,0.67,231.44,231.41,0.1]
[1758519361924,0.67,231.43,231.41,0.1]
[1758519362342,31.2,231.44,231.41,0.1]
[1758519362658,31.2,231.44,231.41,0.82]
[1758519363036,31.87,231.44,231.41,0.1]
[1758519364849,0.67,231.43,231.41,0.1]
[1758519366729,31.2,231.44,231.41,0.1]
[1758519366928,31.87,231.44,231.41,0.1]
[1758519367230,0.67,231.43,231.41,0.1]
[1758519367748,31.2,231.44,231.41,0.1]
[1758519368051,200.90023073,231.47,231.41,0.82]
[1758519368247,0.67,231.43,231.41,0.1]
[1758519370257,0.67,231.42,231.41,0.1]
[1758519370940,36.19114769,231.42,231.41,0.1]
[1758519376249,31.87,231.42,231.41,0.1]
[1758519376554,65.05,231.42,231.41,0.1]
[1758519377941,64.38,231.42,231.41,0.1]
[1758519378144,65.1,231.42,231.41,0.1]
[1758519379564,31.92,231.42,231.41,0.1]
[1758519379743,65.1,231.42,231.41,0.1]
[1758519380156,31.92,231.42,231.41,0.1]
[1758519380460,64.38,231.42,231.41,0.1]
[1758519380657,31.2,231.42,231.41,0.1]
[1758519380849,64.38,231.42,231.41,0.1]
[1758519381164,31.2,231.42,231.41,0.1]
[1758519382156,31.2,231.42,231.41,0.75]
[1758519382364,132.19999999,231.44,231.41,5.07133442]
[1758519382741,132.19999999,231.44,231.42,0.65]
[1758519382940,0.72,231.49,231.42,0.65]
[1758519383142,4.32170776,231.5,231.42,0.65]
[1758519383446,132.19999999,231.53,231.42,0.65]
[1758519383661,33.18,231.52,231.42,0.65]
[1758519383853,64.38,231.52,231.42,0.65]
[1758519384552,165.37999999,231.53,231.43,15.12336343]
[1758519384759,132.19999999,231.53,231.44,0.65]
[1758519384964,163.39999999,231.53,231.44,0.65]
[1758519385765,0.72,231.53,231.44,0.65]
[1758519386059,31.2,231.51,231.44,0.65]
[1758519386239,31.92,231.51,231.44,0.65]
[1758519386879,0.72,231.51,231.45,4.32058759]
[1758519387075,0.72,231.51,231.46,0.68]
[1758519387250,0.72,231.51,231.47,0.68]
[1758519387576,33.18,231.52,231.48,0.68]
[1758519387772,33.18,231.52,231.49,0.68]
[1758519387951,0.68,231.51,231.45,15.80205658]
[1758519388549,31.88,231.51,231.45,15.80205658]
[1758519388753,31.88,231.51,231.45,4.32058759]
[1758519388754,0.68,231.5,231.45,4.32058759]
[1758519389061,0.68,231.49,231.44,4.32077428]
[1758519389264,64.38,231.51,231.46,0.68]
[1758519389450,0.68,231.5,231.46,0.68]
[1758519390071,0.68,231.49,231.44,4.32077428]
[1758519390262,0.68,231.49,231.44,5.00077428]
[1758519390572,65.06,231.51,231.45,0.68]
[1758519390779,0.68,231.5,231.45,0.68]
[1758519391072,0.68,231.5,231.46,5.00040093]
[1758519392055,0.68,231.5,231.46,4.32040093]
[1758519392273,0.68,231.5,231.46,5.00040093]
[1758519392698,64.38,231.51,231.47,0.68]
[1758519392883,31.2,231.49,231.47,0.68]
[1758519393177,132.19999999,231.53,231.44,10.8019357]
[1758519393351,0.68,231.52,231.45,0.68]
[1758519393675,166.05999999,231.52,231.43,0.68]
[1758519394765,170.37931438,231.52,231.44,4.32077428]
[1758519394966,0.68,231.51,231.44,4.32077428]
[1758519395168,0.68,231.5,231.44,4.32077428]
[1758519396689,31.88,231.49,231.41,0.78]
[1758519396865,169.70002763,231.48,231.41,0.1]
[1758519397061,180.50009675,231.48,231.41,0.1]
[1758519397276,0.68,231.47,231.41,0.78]
[1758519397477,33.18,231.46,231.41,0.78]
[1758519397666,33.86,231.46,231.41,0.78]
[1758519397885,33.86,231.46,231.42,0.68]
[1758519398069,33.86,231.46,231.41,0.78]
[1758519398385,0.68,231.46,231.41,0.78]
[1758519398799,0.68,231.46,231.41,5.10121505]
[1758519398980,0.68,231.45,231.41,0.1]
[1758519399287,0.68,231.44,231.41,0.1]
[1758519401880,0.68,231.43,231.41,0.1]
[1758519402279,0.68,231.42,231.41,0.1]
[1758519403084,5.0008141,231.44,231.41,0.1]
[1758519403272,33.86,231.44,231.41,0.1]
[1758519404189,64.38,231.45,231.42,0.68]
[1758519404389,0.68,231.44,231.41,0.1]
[1758519406568,0.68,231.43,231.41,0.1]
[1758519407183,0.68,231.42,231.41,0.1]
[1758519409594,31.2,231.45,231.41,0.1]
[1758519409595,31.88,231.45,231.41,0.1]
[1758519409887,64.38,231.45,231.41,0.78]
[1758519410090,65.06,231.45,231.41,0.78]
[1758519410266,65.06,231.45,231.41,5.10132756]
[1758519410466,65.06,231.45,231.41,0.1]
[1758519410897,0.68,231.44,231.41,0.1]
[1758519411397,68.70060237,231.45,231.41,0.1]
[1758519411561,0.68,231.44,231.41,0.1]
[1758519412985,42.00497382,231.45,231.41,0.78]
[1758519413291,42.68497382,231.45,231.41,0.1]
[1758519413488,75.86497382,231.45,231.41,0.1]
[1758519413684,31.88,231.45,231.41,0.78]
[1758519413885,37.50046063,231.46,231.41,0.78]
[1758519414070,0.68,231.45,231.41,0.78]
[1758519414382,77.37404439,231.46,231.42,0.68]
[1758519414572,78.05404439,231.46,231.42,0.68]
[1758519415388,44.19404439,231.46,231.42,0.68]
[1758519415591,44.19404439,231.46,231.43,0.68]
[1758519416290,44.19404439,231.46,231.41,4.4213232]
[1758519416487,0.68,231.45,231.41,4.4213232]
[1758519416694,0.68,231.45,231.41,5.1013232]
[1758519417380,44.19404439,231.46,231.42,0.7]
[1758519417579,44.19404439,231.46,231.43,0.7]
[1758519418084,44.91404439,231.46,231.41,5.1213232]
[1758519418283,0.72,231.45,231.41,0.1]
[1758519418487,0.72,231.44,231.41,0.1]
[1758519418786,49.23450942,231.46,231.41,0.8]
[1758519418965,0.72,231.45,231.41,0.8]
[1758519420090,31.2,231.46,231.42,0.7]
[1758519420392,31.2,231.46,231.43,0.7]
[1758519420578,31.2,231.46,231.42,0.7]
[1758519420775,31.2,231.46,231.41,4.42126481]
[1758519421091,176.90550528,231.48,231.43,0.7]
[1758519421296,0.72,231.47,231.43,0.7]
[1758519421683,0.72,231.47,231.43,5.02087618]
[1758519421878,0.72,231.46,231.41,0.1]
[1758519422392,33.18,231.45,231.41,0.1]
[1758519422714,0.72,231.44,231.41,0.1]
[1758519422902,5.04168355,231.44,231.41,0.1]
[1758519423103,4.32168355,231.44,231.41,0.1]
[1758519423392,0.72,231.43,231.41,0.1]
[1758519424791,0.72,231.42,231.41,0.1]
[1758519425294,31.92,231.42,231.41,0.1]
[1758519425487,69.42114769,231.42,231.41,0.1]
[1758519425798,73.74326436,231.42,231.41,0.1]
[1758519427213,40.56326436,231.42,231.41,0.1]
[1758519427414,69.42211667,231.42,231.41,0.1]
[1758519428009,73.74326436,231.42,231.41,0.1]
[1758519431312,40.56326436,231.42,231.41,0.1]
[1758519431615,73.76326436,231.42,231.41,0.1]
[1758519432523,36.24211667,231.42,231.41,0.1]
[1758519432693,73.73326436,231.42,231.41,0.1]
[1758519435495,40.53326436,231.42,231.41,0.1]
[1758519435695,73.73326436,231.42,231.41,0.1]
[1758519437416,73.71326436,231.42,231.41,0.1]
[1758519437625,87.40423739,231.42,231.31,0.1]
[1758519437918,2.88810379,231.41,231.31,0.1]
[1758519438114,31.2,231.37,231.31,0.1]
[1758519438309,31.2,231.33,231.31,0.1]
[1758519439008,4.32383318,231.32,231.31,0.1]
[1758519439205,33.2,231.37,231.31,4.42320262]
[1758519439522,4.32370309,231.35,231.31,4.42320262]
[1758519439723,4.32370309,231.35,231.32,0.69]
[1758519439903,4.32370309,231.35,231.33,0.69]
[1758519440222,0.69,231.42,231.34,0.69]
[1758519440516,42.00870838,231.38,231.34,0.69]
[1758519440904,11.49870838,231.38,231.34,0.69]
[1758519441219,42.69870838,231.38,231.34,0.69]
[1758519441429,42.00870838,231.38,231.35,0.69]
[1758519442316,42.00870838,231.38,231.33,4.32276609]
[1758519442618,33.24,231.41,231.36,0.69]
[1758519442811,46.2368591,231.41,231.37,0.69]
[1758519443419,46.9268591,231.41,231.37,0.69]
[1758519443596,13.6868591,231.41,231.37,0.69]
[1758519443797,46.2368591,231.41,231.37,0.69]
[1758519444822,12.9968591,231.41,231.38,0.69]
[1758519445028,33.24,231.44,231.37,4.32204536]
[1758519445214,44.04588181,231.44,231.38,0.69]
[1758519446229,0.69,231.43,231.38,5.01178715]
[1758519446529,0.69,231.43,231.36,0.69]
[1758519446530,0.69,231.42,231.36,0.69]
[1758519446729,33.93,231.42,231.36,0.69]
[1758519448313,10.90775835,231.42,231.37,4.32208151]
[1758519448521,31.2,231.43,231.38,0.69]
[1758519448700,31.88,231.43,231.39,0.69]
[1758519449825,0.68,231.42,231.37,5.01208151]
[1758519450329,19.18148872,231.31,231.3,31.2]
[1758519451130,19.18148872,231.31,231.29,31.2]
[1758519451311,19.18148872,231.31,231.3,31.2]
[1758519452428,19.18148872,231.31,231.3,4.32338953]
[1758519453330,19.18148872,231.31,231.29,4.32357514]
[1758519454724,19.18148872,231.31,231.26,0.69]
[1758519455239,19.18148872,231.31,231.25,15.13494002]
[1758519455441,19.18148872,231.31,231.25,15.82494002]
[1758519456135,19.18148872,231.31,231.26,0.69]
[1758519456824,19.18148872,231.31,231.27,15.13382626]
[1758519457024,19.18148872,231.31,231.28,0.69]
[1758519457912,19.18148872,231.31,231.27,15.13382626]
[1758519458112,19.18148872,231.31,231.27,15.82382626]
[1758519458735,19.18148872,231.31,231.27,15.13382626]
[1758519458917,19.86148872,231.31,231.27,15.13382626]
[1758519459110,19.86148872,231.31,231.27,10.8098759]
[1758519459520,19.18148872,231.31,231.27,11.4998759]
[1758519459719,19.18148872,231.31,231.27,10.8098759]
[1758519459938,19.18148872,231.31,231.28,0.69]
[1758519460136,19.18148872,231.31,231.27,10.8098759]
[1758519460326,19.18148872,231.31,231.27,11.4998759]
[1758519460833,19.18148872,231.31,231.28,0.69]
[1758519461624,19.18148872,231.31,231.27,15.13382626]
[1758519462022,19.18148872,231.31,231.27,15.82382626]
[1758519463238,19.18148872,231.31,231.28,0.69]
[1758519463838,19.18148872,231.31,231.29,0.69]
[1758519464040,19.18148872,231.31,231.27,15.13382626]
[1758519464252,19.18148872,231.31,231.28,0.69]
[1758519464446,19.18148872,231.31,231.29,0.69]
[1758519464828,19.18148872,231.31,231.3,0.69]
[1758519465542,19.18148872,231.31,231.3,5.01338953]
[1758519465735,19.86148872,231.31,231.3,4.32338953]
[1758519465937,19.18148872,231.31,231.3,4.32338953]
[1758519466742,19.18148872,231.31,231.29,4.32357646]
[1758519467758,19.18148872,231.31,231.3,0.69]
[1758519468844,19.18148872,231.31,231.3,5.01338953]
[1758519469044,19.18148872,231.31,231.3,38.25338953]
[1758519469533,0.68,231.39,231.3,49.06186337]
[1758519469852,0.68,231.38,231.31,0.69]
[1758519470048,0.68,231.38,231.31,33.93]
[1758519470552,44.19629605,231.43,231.31,33.93]
[1758519470553,0.68,231.4,231.32,0.69]
[1758519470851,0.68,231.4,231.33,15.12990099]
[1758519471034,0.68,231.4,231.34,33.95]
[1758519472348,0.68,231.39,231.33,15.12990099]
[1758519472556,0.68,231.38,231.35,33.24]
[1758519472731,0.68,231.37,231.35,33.24]
[1758519472934,167.72099287,231.43,231.36,4.32226832]
[1758519473257,0.68,231.39,231.36,4.32226832]
[1758519473556,0.68,231.38,231.36,4.32226832]
[1758519474450,0.68,231.38,231.35,4.32245515]
[1758519474651,0.68,231.37,231.35,4.32245515]
[1758519474955,0.68,231.36,231.35,4.32245515]
[1758519475654,0.68,231.36,231.33,33.24]
[1758519475852,4.32115281,231.42,231.31,4.32320262]
[1758519475853,0.68,231.35,231.31,4.32320262]
[1758519476055,0.68,231.34,231.31,4.32320262]
[1758519476240,0.68,231.33,231.31,33.24]
[1758519476632,0.68,231.32,231.31,33.24]
[1758519476932,0.68,231.32,231.27,10.80975243]
[1758519477132,35.52220923,231.37,231.27,10.80975243]
[1758519477133,0.68,231.34,231.28,33.94]
[1758519477343,31.2,231.37,231.29,0.7]
[1758519477565,0.68,231.38,231.29,0.7]
[1758519477938,0.68,231.38,231.3,31.2]
[1758519478146,0.68,231.38,231.31,0.7]
[1758519478348,0.68,231.38,231.32,48.39055506]
[1758519478845,0.68,231.38,231.32,49.09055506]
[1758519480366,0.68,231.37,231.32,49.09055506]
[1758519480767,0.68,231.39,231.33,0.7]
[1758519481666,0.68,231.39,231.33,33.96]
[1758519481841,0.68,231.38,231.34,4.32264199]
[1758519482041,7.21084738,231.42,231.34,4.32264199]
[1758519482245,0.68,231.41,231.34,4.32264199]
[1758519482450,0.68,231.4,231.34,4.32264199]
[1758519483755,0.68,231.4,231.34,15.12924698]
[1758519483958,0.68,231.4,231.34,15.82924698]
[1758519485764,0.68,231.4,231.34,5.02264199]
[1758519485940,0.68,231.39,231.34,4.32264199]
[1758519486271,0.68,231.38,231.34,4.32264199]
[1758519486443,2.88968268,231.42,231.34,4.32264199]
[1758519486759,0.68,231.37,231.33,33.24]
[1758519486965,0.68,231.37,231.32,4.32292197]
[1758519486966,0.68,231.36,231.32,37.56292197]
[1758519487447,0.68,231.35,231.32,37.56292197]
[1758519488166,4.32191437,231.38,231.32,37.56292197]
[1758519488371,0.68,231.35,231.32,37.56292197]
[1758519488669,0.68,231.34,231.3,4.32338953]
[1758519488870,31.2,231.4,231.3,4.32338953]
[1758519489164,0.68,231.33,231.25,33.94]